bitfinex-derivatives/quotes_ETHF0:USTF0_20230702
["timestamp","ask_amount","ask_price","bid_price","bid_amount"]
[1688296376767,0.0616756,1918.6,1918.5,5.53273435]
[1688296376963,0.93848697,1918.7,1918.5,18.04635814]
[1688296377159,0.06167345,1918.6,1918.5,5.53273435]
[1688296377463,0.93848697,1918.7,1918.5,18.04635939]
[1688296377665,0.06167147,1918.6,1918.5,5.53273435]
[1688296377862,0.06167147,1918.6,1918.5,18.61375548]
[1688296378068,5.72840497,1918.8,1918.5,18.61375548]
[1688296378365,5.72840497,1918.8,1918.5,6.10021847]
[1688296378366,0.06166966,1918.6,1918.5,6.10021847]
[1688296378566,0.007818,1918.8,1918.5,18.61376424]
[1688296378770,0.06166754,1918.6,1918.5,6.10021847]
[1688296378970,0.94630497,1918.8,1918.5,18.61376593]
[1688296379169,0.06166558,1918.7,1918.6,5.1755]
[1688296379468,0.06166558,1918.7,1918.6,5.46221635]
[1688296385972,0.06166558,1918.7,1918.6,8.67001635]
[1688296389773,0.06166558,1918.7,1918.6,21.18294594]
[1688296390081,0.06166558,1918.7,1918.6,21.18294084]
[1688296390768,0.06166558,1918.7,1918.6,8.67001635]
[1688296393983,0.47121745,1918.7,1918.6,9.08619946]
[1688296394179,0.06166558,1918.7,1918.6,9.08619946]
[1688296394481,0.06166558,1918.7,1918.6,21.59902888]
[1688296394672,0.06166558,1918.7,1918.6,9.08619946]
[1688296398489,0.06166558,1918.7,1918.6,3.91069946]
[1688296398781,0.06166558,1918.7,1918.6,3.62398311]
[1688296398982,0.06166558,1918.7,1918.6,3.91069946]
[1688296399382,0.06166558,1918.7,1918.6,16.42335052]
[1688296399882,0.06166558,1918.7,1918.6,3.91069946]
[1688296403087,0.06166558,1918.7,1918.6,3.2078]
[1688296405391,0.06166558,1918.7,1918.6,3.49451635]
[1688296413288,0.06166558,1918.7,1918.6,3.2078]
[1688296415097,0.06166558,1918.7,1918.6,15.72048686]
[1688296415291,0.06166558,1918.7,1918.6,16.00720321]
[1688296416391,0.06166558,1918.7,1918.6,3.49451635]
[1688296417298,0.06166558,1918.7,1918.6,16.00721714]
[1688296419798,0.06166558,1918.7,1918.6,15.72050079]
[1688296420191,0.06166558,1918.7,1918.6,16.00721714]
[1688296425697,0.06166558,1918.7,1918.6,15.72050079]
[1688296426207,0.06166558,1918.7,1918.6,16.00721714]
[1688296446816,0.06166558,1918.7,1918.6,15.72050079]
[1688296449735,0.06166558,1918.7,1918.6,16.00721714]
[1688296452726,0.06137576,1918.7,1918.6,16.00721714]
[1688296452934,0.32133849,1918.8,1918.6,16.00721714]
[1688296453227,5.93658697,1918.9,1918.6,3.49451635]
[1688296453528,6.1517811,1918.9,1918.6,8.45091635]
[1688296454030,6.15959868,1918.9,1918.6,8.45091635]
[1688296454929,6.15959868,1918.9,1918.6,4.9564]
[1688296456734,6.57540644,1918.9,1918.6,4.9564]
[1688296459935,6.57540644,1918.9,1918.7,0.28671635]
[1688296460125,6.54096853,1918.9,1918.7,0.28671635]
[1688296460329,6.54096853,1918.9,1918.7,5.25941635]
[1688296462631,6.54096853,1918.9,1918.7,4.9727]
[1688296470151,6.3257744,1918.9,1918.7,5.82690047]
[1688296476357,6.54096853,1918.9,1918.7,5.54018412]
[1688296488556,6.54096853,1918.9,1918.7,5.82690047]
[1688296488960,6.3257744,1918.9,1918.7,5.82690047]
[1688296491563,6.3257744,1918.9,1918.7,5.54018412]
[1688296495668,6.3257744,1918.9,1918.7,5.95140423]
[1688296499964,6.3257744,1918.9,1918.7,6.23812058]
[1688296506370,6.3257744,1918.9,1918.7,5.95140423]
[1688296506966,6.3257744,1918.9,1918.7,6.23812058]
[1688296510775,1.36211231,1918.9,1918.7,6.23812058]
[1688296510971,0.42362534,1918.9,1918.7,6.23812058]
[1688296511668,1.36211231,1918.9,1918.7,6.23812058]
[1688296512067,1.36211231,1918.9,1918.7,5.95140423]
[1688296512878,1.36211231,1918.9,1918.7,6.23812058]
[1688296520083,1.36211231,1918.9,1918.7,8.59172011]
[1688296530593,1.36211231,1918.9,1918.7,8.87843646]
[1688296535002,1.36211231,1918.9,1918.8,0.56748412]
[1688296535502,0.42362534,1918.9,1918.8,0.56748412]
[1688296539106,0.42362534,1918.9,1918.5,3.215618]
[1688296539303,0.42362534,1918.9,1918.6,12.51289292]
[1688296539501,1.36211231,1918.9,1918.6,12.51289292]
[1688296539805,1.57730644,1918.9,1918.6,12.51289292]
[1688296540901,1.57730644,1918.9,1918.5,3.215618]
[1688296541300,1.57730644,1918.9,1918.5,3.78310212]
[1688296541901,1.57730644,1918.9,1918.6,5.1399]
[1688296542403,1.57730644,1918.9,1918.7,0.28671635]
[1688296543404,1.36211231,1918.9,1918.8,0.56748412]
[1688296543705,1.36211231,1918.9,1918.8,13.18288342]
[1688296543909,0.00781758,1918.9,1918.8,13.18288342]
[1688296553009,0.00781758,1918.9,1918.8,0.67148412]
[1688296553210,0.00781758,1918.9,1918.8,0.56748412]
[1688296553514,0.00781758,1918.9,1918.8,13.18229992]
[1688296553907,0.17438356,1918.9,1918.8,13.18229992]
[1688296555809,0.17438356,1918.9,1918.8,13.59225075]
[1688296560116,0.17438356,1918.9,1918.8,13.48825075]
[1688296562013,0.17438356,1918.9,1918.8,13.59225075]
[1688296565524,0.17438356,1918.9,1918.8,13.48825075]
[1688296567619,0.17438356,1918.9,1918.8,18.74445075]
[1688296598434,0.17438356,1918.9,1918.8,13.48825075]
[1688296648469,0.17438356,1918.9,1918.8,12.92076663]
[1688296649878,0.17438356,1918.9,1918.8,13.20748298]
[1688296650476,0.17438356,1918.9,1918.8,12.92076663]
[1688296652186,0.17438356,1918.9,1918.8,13.20748298]
[1688296661590,0.17438356,1918.9,1918.8,12.92076663]
[1688296661778,0.17438356,1918.9,1918.8,13.20748298]
[1688296664285,0.17438356,1918.9,1918.8,12.92076663]
[1688296665499,0.17438356,1918.9,1918.8,13.20748298]
[1688296670598,0.17438356,1918.9,1918.8,16.41528298]
[1688296671591,0.17438356,1918.9,1918.8,16.12856663]
[1688296673799,0.17438356,1918.9,1918.8,15.7186158]
[1688296674600,0.17438356,1918.9,1918.8,20.5310158]
[1688296676802,0.17438356,1918.9,1918.8,20.81773215]
[1688296680289,0.17438356,1918.9,1918.8,20.5310158]
[1688296683204,0.17438356,1918.9,1918.8,15.7186158]
[1688296693904,0.17438356,1918.9,1918.8,16.00533215]
[1688296695405,0.17438356,1918.9,1918.8,20.82043215]
[1688296698508,0.17438356,1918.9,1918.8,20.5337158]
[1688296699308,0.17438356,1918.9,1918.8,20.82043215]
[1688296699899,0.17438356,1918.9,1918.8,20.5337158]
[1688296702007,0.17438356,1918.9,1918.5,0.007818]
[1688296702304,0.17438356,1918.9,1918.6,12.5123266]
[1688296702305,0.21519413,1918.8,1918.6,12.5123266]
[1688296703100,0.21519413,1918.8,1918.5,0.007818]
[1688296703707,1.15343886,1918.8,1918.5,0.007818]
[1688296710320,0.21519413,1918.8,1918.5,0.007818]
[1688296710521,1.15360344,1918.8,1918.5,0.007818]
[1688296711021,0.21519413,1918.8,1918.5,0.007818]
[1688296713916,0.21519413,1918.8,1918.6,3.2078]
[1688296714916,0.21519413,1918.8,1918.6,8.27]
[1688296716230,0.21519413,1918.8,1918.6,8.55671635]
[1688296716426,5.42891171,1918.9,1918.6,8.55671635]
[1688296716629,6.36730382,1918.9,1918.6,8.55671635]
[1688296717424,6.36730382,1918.9,1918.8,3.2078]
[1688296717725,6.49365123,1918.9,1918.8,3.2078]
[1688296726630,6.49365123,1918.9,1918.6,5.34891635]
[1688296726631,6.49365123,1918.9,1918.6,8.27]
[1688296737552,1.0725571,1918.9,1918.7,0.28671635]
[1688296737845,1.0725571,1918.9,1918.8,3.77528412]
[1688296737846,0.13416499,1918.9,1918.8,3.77528412]
[1688296738142,0.13416499,1918.9,1918.8,8.58818412]
[1688296742143,0.13416499,1918.9,1918.8,8.0207]
[1688296769853,0.13416499,1918.9,1918.8,20.53126895]
[1688296770460,0.44685499,1918.9,1918.8,20.84397895]
[1688296770656,0.13416499,1918.9,1918.8,20.94797895]
[1688296771758,0.21819334,1918.9,1918.8,20.94797895]
[1688296771958,0.21037475,1918.9,1918.8,20.94797895]
[1688296772159,0.31267,1919.1,1918.8,20.94797895]
[1688296772362,0.31267,1919.1,1919.0,3.2078]
[1688296772661,0.31267,1919.1,1919.0,16.03104895]
[1688296775765,0.31267,1919.1,1919.0,21.00944895]
[1688296777066,0.31267,1919.1,1919.0,8.49888]
[1688296778363,0.31267,1919.1,1919.0,21.00770442]
[1688296778561,0.31267,1919.1,1919.0,8.49888]
[1688296779476,0.49144902,1919.1,1919.0,8.49888]
[1688296782974,0.49144902,1919.1,1919.0,3.52048]
[1688296787181,0.49144902,1919.1,1919.0,3.2078]
[1688296787384,0.49144902,1919.1,1918.9,0.31269]
[1688296787572,0.21519413,1919.0,1918.9,0.31269]
[1688296787771,0.3127,1918.9,1918.8,14.82114309]
[1688296787983,0.3127,1918.9,1918.8,27.33161757]
[1688296788177,0.49144956,1918.9,1918.8,27.33161757]
[1688296788777,0.49144956,1918.9,1918.8,27.61833392]
[1688296794788,0.49144956,1918.9,1918.8,16.73529392]
[1688296795388,0.49144956,1918.9,1918.8,21.89969392]
[1688296796988,0.17874956,1918.9,1918.8,21.89969392]
[1688296797183,0.17874956,1918.9,1918.8,21.48210083]
[1688296797984,0.49143956,1918.9,1918.8,21.48210083]
[1688296802695,0.49143956,1918.9,1918.8,16.03098448]
[1688296803496,0.49143956,1918.9,1918.8,16.31770083]
[1688296803681,0.49143956,1918.9,1918.8,16.03098448]
[1688296804991,0.49143956,1918.9,1918.8,16.31770083]
[1688296805991,0.31269,1918.9,1918.8,16.51726394]
[1688296809597,0.78175,1919.0,1918.8,16.51726394]
[1688296809893,0.78175,1919.0,1918.9,13.39004302]
[1688296809894,0.31267,1919.0,1918.9,13.39004302]
[1688296810202,0.31267,1919.0,1918.9,18.62364302]
[1688296811600,0.31267,1919.0,1918.9,18.6238501]
[1688296811800,0.31267,1919.0,1918.9,6.11375412]
[1688296813099,0.31267,1919.0,1918.9,5.54627]
[1688296813297,0.31267,1919.0,1918.9,0.31267]
[1688296814399,0.31267,1919.0,1918.9,0.59938635]
[1688296814598,0.31267,1919.0,1918.9,13.10953854]
[1688296815297,0.31267,1919.0,1918.9,12.82282219]
[1688296815497,0.31267,1919.0,1918.9,0.31267]
[1688296816793,0.31267,1919.0,1918.9,0.46877165]
[1688296819099,0.31267,1919.0,1918.9,0.15610165]
[1688296821007,0.31267,1919.0,1918.9,0.46879165]
[1688296822208,0.31267,1919.0,1918.9,0.15610165]
[1688296823710,0.31267,1919.0,1918.9,0.46879165]
[1688296828207,0.31267,1919.0,1918.9,0.15610165]
[1688296832214,0.31267,1919.0,1918.9,0.46879165]
[1688296835413,0.73489055,1919.0,1918.9,0.46879165]
[1688296839511,0.31267,1919.0,1918.9,0.755508]
[1688296841315,0.48705688,1919.0,1918.9,5.42450635]
[1688296841516,0.48705688,1919.0,1918.9,5.13779]
[1688296843219,0.48705688,1919.0,1918.9,5.42450635]
[1688296843420,0.48705688,1919.0,1918.9,4.8251]
[1688296844515,0.48705688,1919.0,1918.9,5.13779]
[1688296846225,0.48705688,1919.0,1918.9,4.8251]
[1688296853027,0.91383884,1919.0,1918.9,4.8251]
[1688296864139,0.91383884,1919.0,1918.9,5.11181635]
[1688296864332,0.91383884,1919.0,1918.9,4.8251]
[1688296882550,0.91383884,1919.0,1918.6,3.2078]
[1688296882750,0.21519413,1918.9,1918.8,5.2556]
[1688296882951,0.7021308,1918.9,1918.8,5.2556]
[1688296883152,1.6404051,1918.9,1918.8,5.2556]
[1688296887551,1.6404051,1918.9,1918.8,5.56831]
[1688296887852,0.48693667,1918.9,1918.8,9.16682635]
[1688296888055,0.45443667,1918.9,1918.8,21.67779027]
[1688296894759,0.45443667,1918.9,1918.8,21.57379027]
[1688296899968,0.45443667,1918.9,1918.8,18.36599027]
[1688296900168,0.45443667,1918.9,1918.8,21.57379027]
[1688296901669,0.45443667,1918.9,1918.8,9.06282635]
[1688296901869,0.45443667,1918.9,1918.8,21.57381292]
[1688296902167,0.45443667,1918.9,1918.8,21.57381278]
[1688296902563,0.45443667,1918.9,1918.8,21.57382437]
[1688296904371,0.45443667,1918.9,1918.8,21.28710802]
[1688296904668,0.45443667,1918.9,1918.8,8.4634]
[1688296905663,1.39271097,1918.9,1918.8,8.4634]
[1688296909868,1.39271097,1918.9,1918.8,3.2078]
[1688296910067,1.39271097,1918.9,1918.7,0.88019412]
[1688296910266,1.39271097,1918.9,1918.7,5.46251]
[1688296910267,1.2184643,1918.9,1918.7,5.46251]
[1688296910470,1.2184643,1918.9,1918.8,3.2078]
[1688296910669,1.2184643,1918.9,1918.8,3.52051]
[1688296914779,1.2184643,1918.9,1918.8,3.80722635]
[1688296917170,1.2184643,1918.9,1918.8,3.52051]
[1688296919770,1.2184643,1918.9,1918.8,3.80722635]
[1688296919966,1.2184643,1918.9,1918.8,16.31826125]
[1688296920166,1.2184643,1918.9,1918.8,3.2078]
[1688296925081,1.2184643,1918.9,1918.8,3.52051]
[1688296926076,1.2184643,1918.9,1918.8,3.2078]
[1688296927876,1.2184643,1918.9,1918.8,16.31858121]
[1688296928379,0.28019,1918.9,1918.8,16.31858121]
[1688296928780,0.37581852,1918.9,1918.8,16.31858121]
[1688296966826,0.37581852,1918.9,1918.8,16.03186486]
[1688296967027,0.37581852,1918.9,1918.8,15.71915486]
[1688296970420,0.37581852,1918.9,1918.8,16.03186486]
[1688296974129,0.37581852,1918.9,1918.8,3.52051]
[1688296975832,0.37581852,1918.9,1918.8,3.80722635]
[1688296976535,0.37581852,1918.9,1918.8,8.66462635]
[1688296982332,0.37581852,1918.9,1918.8,8.37791]
[1688296983134,0.37581852,1918.9,1918.8,8.66462635]
[1688296989030,0.09562852,1918.9,1918.8,8.66462635]
[1688296989232,0.09562852,1918.9,1918.8,8.76862635]
[1688296990230,0.40831852,1918.9,1918.8,8.76862635]
[1688296997936,0.40831852,1918.9,1918.8,8.66462635]
[1688297002349,1.34659282,1918.9,1918.8,8.66462635]
[1688297004450,1.34659282,1918.9,1918.8,8.37791]
[1688297005855,1.34659282,1918.9,1918.8,8.66462635]
[1688297009551,1.34659282,1918.9,1918.8,8.37791]
[1688297014158,1.34659282,1918.9,1918.8,8.66462635]
[1688297016566,1.34659282,1918.9,1918.8,3.52051]
[1688297018059,1.34659282,1918.9,1918.8,3.80722635]
[1688297020766,1.34659282,1918.9,1918.8,3.52051]
[1688297026477,1.03390282,1918.9,1918.8,3.80722635]
[1688297026670,1.34659282,1918.9,1918.8,3.80722635]
[1688297027378,1.34659282,1918.9,1918.8,3.52051]
[1688297032988,1.34659282,1918.9,1918.8,3.80722635]
[1688297036494,1.34659282,1918.9,1918.8,3.52051]
[1688297038996,0.09562852,1918.9,1918.8,3.80722635]
[1688297046199,0.40831852,1918.9,1918.8,3.80722635]
[1688297049401,0.40831852,1918.9,1918.8,3.52051]
[1688297050102,1.34659282,1918.9,1918.8,3.52051]
[1688297052399,1.34659282,1918.9,1918.8,3.80722635]
[1688297053198,1.34659282,1918.9,1918.8,3.49451635]
[1688297053403,1.34659282,1918.9,1918.6,1.19451475]
[1688297053704,1.34659282,1918.9,1918.7,0.31271]
[1688297053705,0.21519413,1918.8,1918.7,0.31271]
[1688297054000,0.61097896,1918.8,1918.7,0.31271]
[1688297061200,0.61097896,1918.8,1918.6,0.41272475]
[1688297061504,0.61097896,1918.8,1918.5,13.911588]
[1688297061706,5.41237896,1918.8,1918.6,0.31274]
[1688297061908,9.55845326,1918.8,1918.6,0.31274]
[1688297062102,1.2509943,1918.7,1918.6,0.31274]
[1688297062306,1.33403891,1918.7,1918.6,0.31274]
[1688297069314,0.39576461,1918.7,1918.6,0.31274]
[1688297069818,1.33419586,1918.7,1918.6,0.31274]
[1688297070023,0.39576461,1918.7,1918.6,0.31274]
[1688297080021,0.39576461,1918.7,1918.6,0.59945635]
[1688297080334,1.33421335,1918.7,1918.6,0.59945635]
[1688297080630,0.39576461,1918.7,1918.6,0.31274]
[1688297085526,1.33419603,1918.7,1918.6,0.31274]
[1688297090834,1.33419603,1918.7,1918.5,10.34719521]
[1688297091044,0.21519413,1918.6,1918.5,10.34719521]
[1688297091339,3.81867246,1918.6,1918.5,10.65995521]
[1688297092547,0.61087246,1918.6,1918.5,10.65995521]
[1688297103257,1.01984368,1918.6,1918.5,10.65995521]
[1688297121071,0.80464955,1918.6,1918.5,5.63405521]
[1688297122563,1.74308097,1918.6,1918.5,5.63405521]
[1688297139376,1.74308097,1918.6,1918.5,5.92077156]
[1688297139569,1.74308097,1918.6,1918.5,5.63405521]
[1688297158981,1.74308097,1918.6,1918.5,5.92077156]
[1688297161088,1.74308097,1918.6,1918.5,5.63405521]
[1688297172387,1.74308097,1918.6,1918.5,5.92077156]
[1688297172790,1.74308097,1918.6,1918.5,5.63405521]
[1688297183497,1.74308097,1918.6,1918.5,0.007818]
[1688297183698,1.66014264,1918.6,1918.5,0.007818]
[1688297187096,1.66014264,1918.6,1918.5,0.08554615]
[1688297195304,1.66014264,1918.6,1918.5,0.39830615]
[1688297199414,1.66014264,1918.6,1918.5,0.08554615]
[1688297200720,1.66014264,1918.6,1918.5,0.39829615]
[1688297201321,1.66014264,1918.6,1918.5,0.08554615]
[1688297204226,1.66014264,1918.6,1918.5,0.007818]
[1688297204618,1.66014264,1918.6,1918.5,0.08561833]
[1688297208322,1.66014264,1918.6,1918.3,5.58928]
[1688297208522,3.2078,1918.4,1918.3,5.58928]
[1688297208728,3.73576413,1918.4,1918.3,5.58928]
[1688297208922,4.67419555,1918.4,1918.3,5.58928]
[1688297209322,4.67419555,1918.4,1918.3,5.2765]
[1688297210923,4.67419555,1918.4,1918.3,5.58929]
[1688297216327,4.45900142,1918.4,1918.3,5.87600635]
[1688297216524,3.52057,1918.4,1918.3,5.87600635]
[1688297217028,3.52057,1918.4,1918.3,5.58929]
[1688297219329,3.93662433,1918.4,1918.3,5.58929]
[1688297225531,0.72882433,1918.4,1918.3,5.58929]
[1688297240347,0.72882433,1918.4,1918.3,5.87600635]
[1688297240745,0.72882433,1918.4,1918.3,5.58929]
[1688297241750,1.66725575,1918.4,1918.3,5.58929]
[1688297256253,1.66725575,1918.4,1918.3,5.87600635]
[1688297257260,1.66725575,1918.4,1918.3,5.58929]
[1688297258261,1.66725575,1918.4,1918.3,5.87600635]
[1688297259063,1.66725575,1918.4,1918.3,5.58929]
[1688297260262,1.66725575,1918.4,1918.3,5.87600635]
[1688297260663,0.41605433,1918.4,1918.3,5.87600635]
[1688297260963,0.31276,1918.5,1918.3,5.87600635]
[1688297261156,0.31276,1918.5,1918.4,3.2078]
[1688297261357,0.31276,1918.5,1918.4,4.08805412]
[1688297263763,0.31276,1918.5,1918.4,3.52057]
[1688297269071,0.31276,1918.5,1918.4,0.31277]
[1688297276776,0.31276,1918.5,1918.3,5.58929]
[1688297277480,0.52795413,1918.5,1918.3,5.58929]
[1688297277680,1.46638555,1918.5,1918.3,5.58929]
[1688297279983,1.25119142,1918.5,1918.3,5.87600635]
[1688297280576,1.25119142,1918.5,1918.3,6.44349047]
[1688297289189,1.46638555,1918.5,1918.3,5.58929]
[1688297290184,1.46638555,1918.5,1918.3,5.87600635]
[1688297297799,1.46638555,1918.5,1918.3,5.58929]
[1688297302098,1.46638555,1918.5,1918.3,5.87600635]
[1688297304005,1.25119142,1918.5,1918.3,5.87600635]
[1688297307310,1.25119142,1918.5,1918.4,0.56748412]
[1688297307502,1.25119142,1918.5,1918.4,0.88025412]
[1688297307704,0.31276,1918.5,1918.4,4.08805412]
[1688297315108,1.25119142,1918.5,1918.4,0.88025412]
[1688297315807,1.25119142,1918.5,1918.4,0.31277]
[1688297316605,0.31276,1918.5,1918.4,0.31277]
[1688297365154,0.31276,1918.5,1918.4,0.73913643]
[1688297365454,0.31276,1918.5,1918.4,0.31277]
[1688297377562,0.31276,1918.5,1918.3,3.61956721]
[1688297377956,0.21519413,1918.4,1918.3,3.61956721]
[1688297378156,0.52796413,1918.4,1918.3,3.93235721]
[1688297379154,1.46639555,1918.4,1918.3,3.93235721]
[1688297384565,1.46639555,1918.4,1918.3,0.72455721]
[1688297392267,1.88100012,1918.4,1918.3,0.72455721]
[1688297394868,1.88100012,1918.4,1918.3,0.31279]
[1688297399280,1.88100012,1918.4,1918.3,5.11889]
[1688297401067,5.19280012,1918.4,1918.2,0.42859759]
[1688297401273,5.19280012,1918.4,1918.2,0.00781922]
[1688297401274,5.08880012,1918.4,1918.2,0.00781922]
[1688297403777,5.08880012,1918.4,1918.2,0.32061922]
[1688297406073,5.08880012,1918.4,1918.3,0.43276603]
[1688297406483,5.08880012,1918.4,1918.3,0.74555603]
[1688297407284,5.08880012,1918.4,1918.3,0.31279]
[1688297407585,5.08880012,1918.4,1918.2,0.32061922]
[1688297408981,5.08880012,1918.4,1918.2,0.00781922]
[1688297409588,5.08880012,1918.4,1918.2,0.32061922]
[1688297411688,9.61815075,1918.4,1918.2,0.00781922]
[1688297411891,0.104,1918.3,1918.2,0.00781922]
[1688297412087,5.19879,1918.3,1918.2,0.00781922]
[1688297412286,6.13722142,1918.3,1918.2,0.00781922]
[1688297413983,6.03322142,1918.3,1918.2,0.00781922]
[1688297421894,6.03322142,1918.3,1918.2,5.17321922]
[1688297440107,9.24102142,1918.3,1918.2,5.17321922]
[1688297454010,6.03322142,1918.3,1918.2,5.17321922]
[1688297454918,9.24102142,1918.3,1918.2,5.17321922]
[1688297455915,4.45902142,1918.3,1918.2,5.17321922]
[1688297456222,3.52059,1918.3,1918.2,5.17321922]
[1688297465727,3.52059,1918.3,1918.2,5.77274557]
[1688297466325,3.52059,1918.3,1918.2,5.48602922]
[1688297467829,3.52059,1918.3,1918.2,5.17321922]
[1688297471738,3.52059,1918.3,1918.2,5.48602922]
[1688297472628,3.52059,1918.3,1918.2,5.17321922]
[1688297483532,3.52059,1918.3,1918.2,5.45993557]
[1688297483736,3.52059,1918.3,1918.2,5.77274557]
[1688297483936,4.45902142,1918.3,1918.2,5.77274557]
[1688297484135,3.52059,1918.3,1918.2,6.07097485]
[1688297484442,3.52059,1918.3,1918.2,5.97836755]
[1688297484942,3.52059,1918.3,1918.2,5.77274557]
[1688297485340,4.45902142,1918.3,1918.2,5.77274557]
[1688297485539,3.52059,1918.3,1918.2,5.95396853]
[1688297486132,3.52059,1918.3,1918.2,5.77274557]
[1688297487833,3.52059,1918.3,1918.2,5.45993557]
[1688297493541,3.52059,1918.3,1918.2,5.17321922]
[1688297493945,0.31279,1918.3,1918.2,5.17321922]
[1688297494143,3.52059,1918.3,1918.2,5.45993557]
[1688297497046,3.52059,1918.3,1918.2,5.17321922]
[1688297498548,3.52059,1918.3,1918.2,5.45993557]
[1688297502154,3.52059,1918.3,1918.2,5.64077804]
[1688297503046,2.13501599,1918.4,1918.2,5.95358804]
[1688297503247,0.41460457,1918.4,1918.3,0.56748412]
[1688297503451,0.29600457,1918.4,1918.3,0.88027412]
[1688297503651,0.93831,1918.6,1918.3,1.03793058]
[1688297503949,3.52056,1918.7,1918.4,0.28671635]
[1688297504153,4.45897142,1918.7,1918.5,0.88024412]
[1688297504351,3.52054,1918.7,1918.5,0.88024412]
[1688297504551,3.93110572,1918.7,1918.6,0.28671635]
[1688297504759,3.93110572,1918.7,1918.6,0.59945635]
[1688297506658,3.93110572,1918.7,1918.6,5.77745635]
[1688297507361,3.93110572,1918.7,1918.6,5.84023008]
[1688297516170,3.93110572,1918.7,1918.6,5.55351373]
[1688297517271,4.86953714,1918.7,1918.6,5.55351373]
[1688297521877,4.86953714,1918.7,1918.6,5.84023008]
[1688297528580,1.66173714,1918.7,1918.6,5.84023008]
[1688297528780,4.86953714,1918.7,1918.6,5.84023008]
[1688297546392,4.86953714,1918.7,1918.6,5.55351373]
[1688297548601,4.86953714,1918.7,1918.6,5.84023008]
[1688297551003,4.86953714,1918.7,1918.6,5.55351373]
[1688297554015,4.86953714,1918.7,1918.6,5.84023008]
[1688297580120,4.86953714,1918.7,1918.6,5.55351373]
[1688297581532,4.86953714,1918.7,1918.6,5.84023008]
[1688297587835,3.93110572,1918.7,1918.6,5.84023008]
[1688297589239,3.61836572,1918.7,1918.6,5.84023008]
[1688297596039,3.93109572,1918.7,1918.6,5.84023008]
[1688297598437,0.72329572,1918.7,1918.6,5.84023008]
[1688297599539,0.41056572,1918.7,1918.6,5.84023008]
[1688297599939,0.93822,1918.8,1918.6,5.84023008]
[1688297600146,1.34701462,1918.8,1918.6,5.84023008]
[1688297600747,0.40879462,1918.8,1918.7,0.56748412]
[1688297600945,0.40879462,1918.8,1918.7,0.88021412]
[1688297601135,1.72025142,1918.9,1918.7,0.94383355]
[1688297601336,0.78182,1918.9,1918.7,0.94383355]
[1688297601641,1.72025142,1918.9,1918.7,0.94383355]
[1688297601846,1.72025142,1918.9,1918.8,0.28671635]
[1688297602142,0.93843142,1918.9,1918.8,0.59942635]
[1688297602342,5.5601,1919.0,1918.8,0.59942635]
[1688297602343,6.49851142,1919.0,1918.8,0.59942635]
[1688297602540,6.49851142,1919.0,1918.9,0.56748412]
[1688297602743,6.49851142,1919.0,1918.9,0.88017412]
[1688297603142,6.49851142,1919.0,1918.9,0.94380192]
[1688297603847,6.91631311,1919.0,1918.9,0.94380192]
[1688297604439,6.91631311,1919.0,1918.9,0.88017412]
[1688297613547,6.60363311,1919.0,1918.9,0.88017412]
[1688297613947,1.35623311,1919.0,1918.9,0.88017412]
[1688297614455,0.41780169,1919.0,1918.9,0.88017412]
[1688297614659,3.2078,1919.1,1918.9,0.88017412]
[1688297615048,3.62978564,1919.1,1919.0,0.28671635]
[1688297615251,3.94244564,1919.1,1919.0,5.37859635]
[1688297617551,4.08879952,1919.1,1919.0,5.37859635]
[1688297628759,3.77613952,1919.1,1919.0,5.37859635]
[1688297633169,4.08879952,1919.1,1919.0,5.37859635]
[1688297634167,3.77613952,1919.1,1919.0,5.37859635]
[1688297634569,4.08879952,1919.1,1919.0,5.37859635]
[1688297640167,3.77613952,1919.1,1919.0,5.79840471]
[1688297640565,0.56833952,1919.1,1919.0,5.79840471]
[1688297643276,0.88099952,1919.1,1919.0,5.79840471]
[1688297647481,0.88099952,1919.1,1919.0,5.37859635]
[1688297672803,0.56833952,1919.1,1919.0,5.37859635]
[1688297682998,0.56833952,1919.1,1919.0,8.58639635]
[1688297706823,0.14635388,1919.1,1919.0,8.58639635]
[1688297713444,1e-08,1919.2,1919.1,0.56748412]
[1688297713641,1e-08,1919.2,1919.1,0.88014412]
[1688297713839,6.05828209,1919.4,1919.1,0.88014412]
[1688297714041,6.05828209,1919.4,1919.3,0.31263]
[1688297715242,6.27188113,1919.4,1919.3,0.31263]
[1688297715434,6.67925043,1919.4,1919.3,0.31263]
[1688297715640,6.67925043,1919.4,1919.3,0.88011412]
[1688297719842,1.55905043,1919.4,1919.3,0.88011412]
[1688297720047,0.62096834,1919.4,1919.3,0.88011412]
[1688297723647,0.62096834,1919.4,1919.3,1.29187151]
[1688297731953,0.93357834,1919.4,1919.3,0.31263]
[1688297747377,0.93357834,1919.4,1919.3,5.19933]
[1688297751575,0.62096834,1919.4,1919.3,5.19933]
[1688297755482,0.93357834,1919.4,1919.3,5.19933]
[1688297773901,0.93357834,1919.4,1919.3,0.31263]
[1688297784604,0.93357834,1919.4,1919.3,0.59934635]
[1688297785508,0.93357834,1919.4,1919.3,0.31263]
[1688297785707,0.93357834,1919.4,1919.3,5.51653]
[1688297789107,0.93357834,1919.4,1919.3,5.80324635]
[1688297789909,0.93357834,1919.4,1919.3,5.51653]
[1688297793719,0.93357834,1919.4,1919.3,0.31263]
[1688297809123,0.93357834,1919.4,1919.3,5.44413]
[1688297834236,0.93357834,1919.4,1919.3,5.73084635]
[1688297838149,0.52620904,1919.4,1919.3,5.44413]
[1688297838542,0.52620904,1919.4,1919.3,5.73084635]
[1688297841254,0.52620904,1919.4,1919.3,5.44413]
[1688297844252,0.52620904,1919.4,1919.3,5.73084635]
[1688297844859,0.52620904,1919.4,1919.3,5.44413]
[1688297847157,0.52620904,1919.4,1919.3,5.73084635]
[1688297847961,0.52620904,1919.4,1919.3,5.44413]
[1688297849859,0.52620904,1919.4,1919.3,5.73084635]
[1688297850961,0.52620904,1919.4,1919.3,5.44413]
[1688297851157,0.52620904,1919.4,1919.3,5.73084635]
[1688297858878,3.73400904,1919.4,1919.1,4.9136]
[1688297859077,3.52045,1919.2,1918.9,5.8052]
[1688297859280,3.52045,1919.2,1919.0,0.31267]
[1688297859779,0.21519413,1919.1,1919.0,0.31267]
[1688297859981,0.52785413,1919.1,1919.0,0.31267]
[1688297860880,1.46593622,1919.1,1919.0,0.31267]
[1688297863182,1.46593622,1919.1,1918.9,10.8746]
[1688297863183,1.46593622,1919.1,1918.9,5.0236]
[1688297863383,3.52048,1919.0,1918.9,5.33629]
[1688297865286,3.52048,1919.0,1918.9,5.40565774]
[1688297865488,0.31268,1919.0,1918.9,5.40565774]
[1688297872085,0.31268,1919.0,1918.9,5.69237409]
[1688297873087,0.31268,1919.0,1918.9,5.40565774]
[1688297881796,0.31268,1919.0,1918.9,5.69237409]
[1688297883100,0.31268,1919.0,1918.9,5.40565774]
[1688297883301,0.31268,1919.0,1918.9,5.32432756]
[1688297888397,0.31268,1919.0,1918.9,5.61104391]